bitfinex-derivatives/quotes_SOLF0:USTF0_20241016
["timestamp","ask_amount","ask_price","bid_price","bid_amount"]
[1729090124317,6.3,154.78,154.7,3.232]
[1729090124516,6.3,154.78,154.68,6.3]
[1729090124813,3.2318,154.72,154.69,3.2324]
[1729090125720,7.7054,154.78,154.68,6.3]
[1729090125915,6.3,154.78,154.68,6.3]
[1729090126317,3.2311,154.76,154.73,3.2315]
[1729090128115,3.2314,154.74,154.68,6.3]
[1729090128316,6.3,154.78,154.68,6.3]
[1729090128620,3.2313,154.75,154.71,3.232]
[1729090128820,6.3,154.78,154.68,6.3]
[1729090129919,6.3,154.78,154.73,3.2315]
[1729090130924,31.2954,154.83,154.68,6.3]
[1729090131126,37.5954,154.83,154.76,3.2309]
[1729090131325,29.89,154.86,154.75,3.20440739]
[1729090131523,3.2298,154.82,154.72,36.19]
[1729090131727,3.2298,154.82,154.78,3.2304]
[1729090132125,3.2298,154.82,154.77,3.29261987]
[1729090132328,3.2298,154.82,154.72,36.19]
[1729090132329,3.2295,154.83,154.76,6.3]
[1729090132517,36.19,154.86,154.76,9.48017319]
[1729090132822,3.2301,154.8,154.77,3.2306]
[1729090133031,36.19,154.86,154.77,3.2306]
[1729090133627,3.23,154.81,154.78,3.2305]
[1729090134524,3.2301,154.8,154.76,9.48017319]
[1729090135433,3.2301,154.8,154.77,3.2306]
[1729090135625,3.2301,154.8,154.76,6.3]
[1729090135931,69.8,154.93,154.75,9.53094315]
[1729090136226,29.89,154.89,154.76,9.133]
[1729090136427,33.08218346,154.89,154.77,3.2306]
[1729090136626,33.08218346,154.89,154.76,12.2822248]
[1729090136933,6.3,154.88,154.76,12.2822248]
[1729090137130,3.23,154.81,154.78,3.2305]
[1729090137333,6.3,154.85,154.78,3.2305]
[1729090137529,6.3,154.85,154.76,4.6043248]
[1729090137725,3.2302,154.8,154.77,3.2307]
[1729090138126,6.3,154.85,154.76,1.4551]
[1729090138325,1.4244,154.84,154.76,1.4551]
[1729090139336,3.2302,154.8,154.77,3.2307]
[1729090139633,1.4244,154.84,154.76,1.4551]
[1729090139826,3.2294,154.84,154.81,3.2298]
[1729090140231,6.3,154.86,154.77,7.701]
[1729090140528,6.3,154.88,154.77,7.701]
[1729090140735,6.3,154.88,154.82,3.2295]
[1729090140936,6.3,154.88,154.78,29.89]
[1729090141327,3.2286,154.88,154.84,3.2291]
[1729090141532,3.2286,154.88,154.78,29.89]
[1729090141925,3.2281,154.9,154.86,3.2288]
[1729090142129,6.28,154.92,154.84,3.28542823]
[1729090142332,6.28,154.92,154.82,6.28]
[1729090142639,3.2282,154.89,154.85,3.229]
[1729090143136,6.28,154.92,154.84,3.17142488]
[1729090143435,3.2278,154.91,154.83,1.4071]
[1729090143640,1.4116,154.96,154.83,4.69771828]
[1729090143840,1.4116,154.96,154.84,32.6011]
[1729090144132,6.28,154.99,154.88,29.89]
[1729090144333,3.24574034,155.02,154.91,29.89]
[1729090144535,6.28,155.04,154.92,10.3982]
[1729090144733,9.53930058,155.04,154.92,13.60196817]
[1729090145140,6.28,155.04,154.92,13.60196817]
[1729090146532,3.2261,155.0,154.95,3.2269]
[1729090147533,3.2261,155.0,154.92,13.60196817]
[1729090148540,3.2261,155.0,154.95,3.2269]
[1729090148834,3.2265,154.98,154.92,13.60196817]
[1729090149043,6.28,155.04,154.93,3.2272]
[1729090149228,29.89,155.03,154.92,2.7731]
[1729090149435,29.89,155.03,154.92,1.4071]
[1729090149632,6.28,155.04,154.92,1.4071]
[1729090149943,3.2267,154.97,154.92,1.4071]
[1729090150141,6.28,155.04,154.92,4.6346]
[1729090150343,3.2267,154.97,154.92,1.4071]
[1729090150642,3.2267,154.97,154.93,3.2274]
[1729090151033,6.28,155.04,154.93,3.2274]
[1729090151231,6.28,155.04,154.92,1.4071]
[1729090151434,29.89,155.02,154.92,1.4071]
[1729090151639,3.2262,154.99,154.91,6.22]
[1729090151833,6.22,154.99,154.91,6.22]
[1729090152242,36.11,154.99,154.85,1.3836]
[1729090152442,1.4375,154.98,154.86,6.22]
[1729090152644,3.2274,154.93,154.89,3.2281]
[1729090152939,7.6575,154.98,154.86,6.22]
[1729090153338,3.2273,154.94,154.86,6.22]
[1729090153542,7.6575,154.98,154.86,6.22]
[1729090154040,7.6575,154.98,154.91,3.2276]
[1729090154041,3.227,154.95,154.91,3.2276]
[1729090154450,7.6575,154.98,154.9,6.22]
[1729090154944,29.89,155.02,154.9,6.22]
[1729090154945,6.22,155.01,154.9,6.22]
[1729090156145,3.2267,154.97,154.93,3.2273]
[1729090157947,3.2273,154.94,154.91,3.19005759]
[1729090158147,6.22,155.01,154.89,6.22]
[1729090158642,3.2269,154.96,154.92,3.2275]
[1729090158851,6.22,155.01,154.92,3.2275]
[1729090159048,3.2271,154.95,154.91,3.1464908]
[1729090159247,3.2271,154.95,154.89,6.22]
[1729090159849,3.2271,154.95,154.91,3.2277]
[1729090160047,3.2271,154.95,154.91,6.44571894]
[1729090161250,6.22,155.01,154.91,3.21801894]
[1729090161451,6.22,155.01,154.89,6.22]
[1729090161452,3.2273,154.94,154.89,6.22]
[1729090162049,3.2271,154.95,154.89,6.22]
[1729090163049,3.2267,154.97,154.89,6.22]
[1729090163749,36.11,155.02,154.89,6.22]
[1729090164257,6.4516,155.01,154.89,6.22]
[1729090164454,3.2274,154.93,154.89,6.22]
[1729090164651,6.22,154.98,154.89,9.4481]
[1729090165152,3.2275,154.93,154.89,9.4481]
[1729090166452,6.22,154.98,154.89,6.22]
[1729090167856,3.2274,154.94,154.9,3.228]
[1729090168560,3.2274,154.94,154.89,6.22]
[1729090168561,3.2268,154.96,154.89,6.22]
[1729090168761,29.89,155.02,154.89,6.22]
[1729090169056,6.22,155.01,154.89,6.22]
[1729090169444,3.2265,154.98,154.94,3.227]
[1729090169645,3.2265,154.98,154.94,6.49708712]
[1729090169850,7.587,155.03,154.93,6.22]
[1729090170051,1.367,155.03,154.94,1.3699]
[1729090170255,7.587,155.03,154.94,4.1724]
[1729090170556,3.2263,154.99,154.95,3.2268]
[1729090171059,3.2262,154.99,154.95,3.2268]
[1729090171259,7.587,155.03,154.94,7.3731099]
[1729090171650,7.587,155.03,154.96,3.2267]
[1729090172447,7.587,155.03,154.94,7.3731099]
[1729090172448,6.22,155.03,154.94,7.3731099]
[1729090172751,3.2256,155.02,154.94,7.3731099]
[1729090173458,6.22,155.06,154.94,7.3731099]
[1729090173960,3.2261,155.0,154.96,3.2266]
[1729090174665,18.59,155.05,154.94,7.3731099]
[1729090174858,3.2258,155.01,154.97,3.2265]
[1729090175351,3.2259,155.0,154.97,3.2265]
[1729090176163,18.59,155.05,154.94,7.3731099]
[1729090176365,3.2257,155.02,154.98,3.2261]
[1729090176964,24.77,155.07,154.97,6.18]
[1729090177560,3.2256,155.02,154.98,3.2262]
[1729090179054,18.59,155.02,154.94,7.3731099]
[1729090179254,18.59,155.02,154.94,13.5531099]
[1729090179462,3.2267,154.97,154.94,13.5531099]
[1729090179871,18.59,155.02,154.94,13.5531099]
[1729090180060,18.59,155.02,154.96,3.2267]
[1729090180061,3.226,155.0,154.96,3.2267]
[1729090180262,18.59,155.02,154.94,13.5531099]
[1729090180656,18.59,155.02,154.95,3.227]
[1729090180859,18.59,155.02,154.94,13.5531099]
[1729090181268,18.59,155.02,154.94,7.3731099]
[1729090181469,18.59,155.0,154.94,1.3699]
[1729090181966,19.9157,155.02,154.94,1.3699]
[1729090182660,3.2265,154.98,154.95,3.2269]
[1729090183964,18.59,155.02,154.94,1.3699]
[1729090185370,3.2265,154.98,154.95,3.227]
[1729090185569,3.2265,154.98,154.94,1.3699]
[1729090186465,3.2265,154.98,154.94,4.597]
[1729090186872,18.59,155.0,154.94,1.3699]
[1729090187265,3.2269,154.96,154.94,1.3699]
[1729090188184,3.2265,154.98,154.94,4.597]
[1729090188373,24.77,155.03,154.94,4.597]
[1729090188869,3.2264,154.98,154.94,4.597]
[1729090189073,24.75,155.03,154.95,3.2268]
[1729090189269,3.2264,154.98,154.95,3.2268]
[1729090189470,24.75,155.03,154.94,1.3699]
[1729090189775,3.2266,154.97,154.94,4.597]
[1729090190569,24.75,155.03,154.94,4.597]
[1729090190765,3.2264,154.98,154.94,4.597]
[1729090192478,3.2264,154.98,154.95,3.2269]
[1729090192684,24.75,155.03,154.94,1.3699]
[1729090192685,3.2261,155.0,154.94,1.3699]
[1729090192972,24.75,155.03,154.97,3.2264]
[1729090193571,3.2256,155.02,154.98,3.2262]
[1729090194072,3.2253,155.03,154.98,3.2262]
[1729090194381,18.59,155.05,154.99,3.2259]
[1729090194969,3.2255,155.03,154.96,1.4207]
[1729090195168,3.2255,155.03,154.99,3.226]
[1729090195373,6.16,155.06,154.99,3.226]
[1729090195570,3.2254,155.03,154.97,3.2264]
[1729090195775,18.59,155.05,154.96,1.4207]
[1729090196575,18.59,155.05,154.97,3.2265]
[1729090197575,3.226,155.0,154.97,3.2265]
[1729090198668,3.226,155.0,154.96,4.6473]
[1729090198874,3.226,155.0,154.96,1.4207]
[1729090199282,3.2256,155.02,154.96,1.4207]
[1729090199975,3.2253,155.03,154.96,1.4207]
[1729090200175,24.75,155.08,154.96,1.4207]
[1729090200579,3.2253,155.03,155.0,3.2258]
[1729090201174,3.2252,155.04,154.98,18.59]
[1729090201385,3.2252,155.04,154.99,6.16]
[1729090202085,3.2252,155.04,155.0,3.2258]
[1729090202270,18.59,155.07,154.99,6.16]
[1729090202475,3.2256,155.02,154.99,6.16]
[1729090203490,3.2256,155.02,154.96,20.0107]
[1729090203491,18.59,155.05,154.97,9.3864]
[1729090203979,3.2258,155.01,154.97,9.3864]
[1729090204184,18.59,155.05,154.97,9.3864]
[1729090204381,6.16,155.08,154.97,24.75]
[1729090205088,3.225,155.05,155.01,3.2256]
[1729090205382,6.16,155.08,155.01,3.2256]
[1729090205383,6.16,155.08,155.01,6.38273087]
[1729090205583,3.2252,155.04,155.01,6.38273087]
[1729090205883,69.76,155.11,155.01,3.15713087]
[1729090206190,3.2244,155.08,155.02,1.4431]
[1729090206487,3.2244,155.08,155.04,3.2249]
[1729090206682,3.2244,155.08,155.02,1.4431]
[1729090207083,3.2244,155.08,155.04,3.225]
[1729090207284,3.2244,155.08,155.02,1.4431]
[1729090207488,18.59,155.16,155.05,18.59]
[1729090207691,24.61,155.16,155.06,6.02]
[1729090208289,3.2234,155.13,155.09,3.2239]
[1729090208484,24.61,155.16,155.09,3.2239]
[1729090209083,3.223,155.14,155.09,3.14497666]
[1729090209295,18.59,155.19,155.08,18.59]
[1729090209483,18.59,155.19,155.03,20.0463]
[1729090209484,24.59,155.22,155.1,18.59]
[1729090209793,24.59,155.22,155.11,7.4227]
[1729090209985,18.59,155.22,155.11,7.4227]
[1729090210189,24.59,155.22,155.11,7.4227]
[1729090210388,6.0,155.22,155.16,3.2226]
[1729090210792,18.59,155.24,155.13,18.59]
[1729090211095,6.0,155.27,155.15,24.59]
[1729090211299,25.9989,155.29,155.18,18.59]
[1729090211499,3.2205,155.27,155.22,3.2212]
[1729090211698,19.9989,155.29,155.21,3.2835113]
[1729090211905,19.9989,155.29,155.19,8.812]
[1729090212105,1.4089,155.29,155.19,8.812]
[1729090212313,1.4089,155.29,155.2,18.59]
[1729090212511,1.4089,155.29,155.2,21.74559903]
[1729090213003,6.0,155.31,155.2,21.74559903]
[1729090213210,6.0,155.34,155.22,18.59]
[1729090213413,6.0,155.34,155.23,6.0]
[1729090213706,3.2195,155.31,155.25,3.2205]
[1729090213908,6.0,155.34,155.25,3.2205]
[1729090214106,6.0,155.34,155.24,1.3125]
[1729090214410,3.2194,155.32,155.24,1.3125]
[1729090214599,2.3772,155.35,155.24,1.3125]
[1729090214910,3.22,155.29,155.24,4.5334]
[1729090215103,18.59,155.34,155.24,1.3125]
[1729090215310,3.2197,155.3,155.25,3.2206]
[1729090215707,18.59,155.34,155.24,1.3125]
[1729090215906,3.2195,155.31,155.26,3.2204]
[1729090216506,1.3358,155.35,155.24,19.9025]
[1729090216711,1.3358,155.35,155.27,3.2202]
[1729090217417,3.2194,155.32,155.24,19.9025]
[1729090217713,1.3358,155.35,155.27,3.2202]
[1729090217914,1.3358,155.35,155.24,19.9025]
[1729090218116,1.3358,155.35,155.25,6.0]
[1729090218314,18.59,155.34,155.25,6.0]
[1729090218812,18.59,155.34,155.24,1.3125]
[1729090219010,3.22,155.29,155.23,9.25161378]
[1729090219314,18.59,155.31,155.23,9.25161378]
[1729090219512,18.59,155.31,155.23,3.25161378]
[1729090219713,6.0,155.32,155.21,6.0]
[1729090219714,18.59,155.29,155.21,6.0]
[1729090219917,18.59,155.29,155.22,3.27656716]
[1729090220109,3.2209,155.25,155.22,3.27656716]
[1729090220316,18.59,155.29,155.22,3.27656716]
[1729090220617,18.59,155.29,155.21,6.0]
[1729090220809,3.2211,155.24,155.21,6.0]
[1729090221113,3.2211,155.24,155.21,9.24018232]
[1729090221515,3.2209,155.24,155.21,9.24018232]
[1729090222223,3.2208,155.25,155.21,9.24018232]
[1729090222409,18.59,155.32,155.21,9.24018232]
[1729090222612,18.59,155.34,155.22,18.59]
[1729090222808,3.2201,155.28,155.22,18.59]
[1729090223004,18.59,155.34,155.22,18.59]
[1729090223305,3.22,155.29,155.24,3.2208]
[1729090223503,18.59,155.34,155.25,6.0]
[1729090223709,7.3358,155.35,155.25,6.0]
[1729090224714,3.2195,155.31,155.27,3.2202]
[1729090225220,18.59,155.36,155.27,3.2202]
[1729090225221,18.59,155.39,155.27,18.59]
[1729090225415,6.0,155.39,155.29,18.59]
[1729090225615,6.0,155.39,155.29,24.59]
[1729090225917,3.2189,155.34,155.3,3.2196]
[1729090226420,3.2187,155.35,155.29,27.84874557]
[1729090227015,3.2187,155.35,155.31,3.2194]
[1729090227215,3.2187,155.35,155.29,27.84874557]
[1729090227620,18.59,155.39,155.29,3.25874557]
[1729090227960,18.59,155.46,155.32,18.59]
[1729090228116,3.2183,155.37,155.32,18.59]
[1729090228519,18.59,155.44,155.33,3.2189]
[1729090228714,3.2182,155.38,155.34,6.0]
[1729090228913,18.59,155.41,155.3,18.59]
[1729090229110,3.2192,155.33,155.31,6.0]
[1729090229516,18.59,155.39,155.28,23.14502098]
[1729090229722,3.2198,155.3,155.28,10.55502098]
[1729090230116,18.59,155.36,155.28,10.55502098]
[1729090230320,3.219,155.34,155.29,3.2197]
[1729090230525,3.219,155.34,155.28,29.14502098]
[1729090230723,6.0,155.39,155.28,29.14502098]
[1729090231021,20.9625,155.45,155.32,18.59]
[1729090231325,20.9625,155.45,155.33,6.0]
[1729090231511,18.59,155.42,155.33,6.0]
[1729090231916,3.2185,155.36,155.33,6.0]
[1729090232416,20.9625,155.45,155.33,24.59]
[1729090232615,6.0,155.44,155.33,24.59]
[1729090233122,3.2175,155.41,155.34,3.2188]
[1729090233320,6.0,155.44,155.33,24.59]
[1729090233823,3.2184,155.37,155.34,3.2188]
[1729090234526,3.2184,155.37,155.34,9.2188]
[1729090235426,6.14,155.44,155.34,9.2188]
[1729090235625,3.218,155.38,155.34,9.2187]
[1729090236026,6.14,155.44,155.34,6.0]
[1729090236420,6.14,155.44,155.28,4.55502098]
[1729090236421,29.65,155.43,155.28,34.20502098]
[1729090236617,3.2195,155.31,155.28,7.77502098]
[1729090236828,3.2195,155.31,155.29,6.14]
[1729090237328,29.65,155.38,155.29,6.14]
[1729090237528,31.0272,155.38,155.29,6.14]
[1729090237724,3.2195,155.31,155.29,6.14]
[1729090237930,29.65,155.35,155.26,1.4407]
[1729090238422,3.22,155.29,155.26,4.63486725]
[1729090238624,29.65,155.35,155.26,4.63486725]
[1729090238817,3.2203,155.28,155.26,4.63486725]
[1729090239018,29.65,155.35,155.26,4.63486725]
[1729090239331,3.2207,155.25,155.24,1.336]
[1729090239534,35.79,155.32,155.21,6.14]
[1729090239828,29.65,155.3,155.21,6.14]
[1729090240027,3.2213,155.23,155.2,3.20253653]
[1729090240223,29.65,155.3,155.2,6.14]
[1729090240423,3.2215,155.22,155.2,6.14]
[1729090240729,29.65,155.3,155.2,9.34149249]
[1729090241031,2.3905,155.31,155.2,9.34149249]
[1729090241421,3.2207,155.26,155.21,3.2215]
[1729090241924,29.65,155.3,155.22,1.3896]
[1729090242124,29.65,155.3,155.2,6.14]
[1729090242427,1.0399,155.29,155.17,6.14]
[1729090242728,6.14,155.28,155.17,6.14]
[1729090243720,3.2213,155.23,155.19,3.2218]
[1729090243925,6.14,155.28,155.2,3.15217395]
[1729090244129,6.14,155.28,155.17,6.14]
[1729090244331,6.14,155.28,155.2,3.2216]
[1729090244523,6.14,155.28,155.21,3.16989366]
[1729090244730,6.14,155.28,155.17,6.14]
[1729090245133,3.2212,155.23,155.18,3.222]
[1729090245338,3.2212,155.23,155.17,6.14]
[1729090246227,6.14,155.28,155.17,6.14]
[1729090246427,3.2214,155.22,155.18,3.2221]
[1729090246825,3.2208,155.25,155.17,9.3623]
[1729090247022,6.14,155.28,155.17,6.14]
[1729090247327,3.2211,155.24,155.19,3.2218]
[1729090247929,3.2209,155.25,155.2,3.2216]
[1729090248223,3.2209,155.25,155.21,3.28448109]
[1729090248627,3.221,155.24,155.21,3.28448109]
[1729090249726,6.14,155.28,155.21,3.28448109]
[1729090249930,3.2213,155.23,155.19,3.222]
[1729090250128,1.3491,155.31,155.18,29.65]
[1729090250334,6.14,155.3,155.18,29.65]
[1729090250634,6.14,155.3,155.2,3.2216]
[1729090250837,6.14,155.3,155.2,6.41589234]
[1729090251025,3.2211,155.24,155.2,6.41589234]
[1729090252335,3.2216,155.21,155.17,6.14]
[1729090252639,35.79,155.26,155.16,1.3738]
[1729090252827,6.14,155.25,155.16,1.3738]
[1729090253233,29.65,155.24,155.16,1.3738]
[1729090253533,3.2229,155.15,155.11,3.2235]
[1729090253744,35.79,155.21,155.11,6.14]
[1729090254037,3.2233,155.13,155.11,6.14]
[1729090254437,35.79,155.21,155.11,6.14]
[1729090254733,35.79,155.21,155.12,3.2232]
[1729090254734,6.14,155.21,155.12,3.2232]
[1729090255045,1.3451,155.24,155.12,29.65]
[1729090255346,7.4851,155.24,155.16,3.2224]
[1729090255545,7.4851,155.24,155.16,6.5091268]
[1729090255835,7.4851,155.24,155.18,3.2222]
[1729090256241,3.2217,155.21,155.18,3.2222]
[1729090256535,7.4851,155.24,155.17,3.2888717]
[1729090256735,3.2216,155.21,155.16,1.3465]
[1729090256941,29.65,155.27,155.16,4.1137]
[1729090257139,6.14,155.26,155.2,3.2216]
[1729090257339,3.2209,155.25,155.2,3.2216]
[1729090257544,1.4009,155.28,155.17,29.65]
[1729090257732,7.5409,155.28,155.21,3.2214]
[1729090257931,3.2207,155.26,155.19,6.14]
[1729090258131,6.14,155.28,155.19,6.14]
[1729090258339,6.14,155.28,155.21,3.2214]
[1729090259340,3.2209,155.24,155.2,3.2216]
[1729090260043,3.2208,155.25,155.21,3.2215]
[1729090260438,3.221,155.24,155.2,3.2216]
[1729090260635,29.65,155.32,155.19,6.14]
[1729090260832,6.14,155.31,155.19,6.14]
[1729090261034,6.14,155.31,155.24,3.2209]
[1729090261644,3.2202,155.28,155.24,3.2209]
[1729090261845,3.2202,155.28,155.24,6.39694998]
[1729090262245,3.22,155.29,155.25,3.2206]
[1729090262451,7.492,155.33,155.25,3.2206]
[1729090262847,7.492,155.33,155.24,1.3306]
[1729090263552,7.492,155.33,155.24,4.55905626]
[1729090263946,7.492,155.33,155.24,1.3306]
[1729090264150,29.65,155.3,155.21,6.14]
[1729090264355,6.14,155.29,155.21,6.14]
[1729090264547,6.14,155.29,155.2,3.2216]
[1729090264742,6.14,155.29,155.17,1.3284]
[1729090264743,29.65,155.28,155.17,1.3284]
[1729090264946,29.65,155.28,155.18,6.18]
[1729090265347,1.0413,155.27,155.18,6.18]
[1729090265955,1.0413,155.32,155.18,35.83]
[1729090266151,6.18,155.31,155.25,3.2206]
[1729090266551,3.2203,155.27,155.25,3.2206]
[1729090266949,3.2203,155.27,155.24,3.2209]
[1729090267253,3.2203,155.28,155.22,6.18]
[1729090267443,6.18,155.31,155.22,6.18]
[1729090267645,6.18,155.31,155.23,3.221]
[1729090267851,6.18,155.31,155.22,6.18]
[1729090268042,6.18,155.31,155.23,3.2211]
[1729090268245,6.18,155.31,155.22,6.18]
[1729090268650,6.18,155.31,155.21,3.2215]
[1729090268856,6.18,155.31,155.19,6.18]
[1729090269053,3.2202,155.28,155.19,6.18]
[1729090269255,6.18,155.31,155.19,6.18]
[1729090269451,6.18,155.31,155.22,3.2213]
[1729090269656,1.0413,155.32,155.19,6.18]
[1729090269853,6.18,155.32,155.24,3.2208]
[1729090270050,6.18,155.32,155.24,3.14448595]
[1729090270353,6.18,155.32,155.25,3.27782787]
[1729090270654,3.2203,155.28,155.23,6.18]
[1729090270845,29.65,155.31,155.18,6.18]
[1729090271145,29.65,155.29,155.18,6.18]
[1729090271346,3.2208,155.25,155.18,6.18]
[1729090271541,29.65,155.29,155.18,6.18]
[1729090271745,3.2208,155.25,155.18,6.18]
[1729090271947,29.65,155.29,155.18,6.18]
[1729090272450,3.2207,155.25,155.18,6.18]
[1729090272653,6.18,155.3,155.18,35.83]
[1729090272949,3.2202,155.28,155.2,29.65]
[1729090273147,3.2202,155.28,155.24,3.2208]
[1729090273547,3.2203,155.27,155.24,3.2208]
[1729090273854,29.65,155.31,155.2,6.18]
[1729090274350,29.65,155.31,155.21,3.2214]
[1729090274546,29.65,155.31,155.2,6.18]
[1729090274747,3.2212,155.23,155.2,6.18]
[1729090275141,35.83,155.29,155.2,6.18]
[1729090275357,35.83,155.29,155.17,1.3284]
[1729090275555,35.83,155.29,155.18,6.18]
[1729090275752,3.2217,155.21,155.18,6.18]
[1729090275949,1.0421,155.28,155.17,1.3284]
[1729090276551,1.0421,155.28,155.21,3.2215]
[1729090276753,1.0421,155.28,155.17,1.3284]
[1729090276952,6.18,155.29,155.17,1.3284]
[1729090277255,6.18,155.29,155.23,3.221]
[1729090277553,3.2205,155.26,155.23,3.221]
[1729090278145,6.18,155.29,155.2,6.18]
[1729090278360,3.2208,155.25,155.22,3.2212]
[1729090278557,3.2208,155.25,155.2,6.18]
[1729090278753,6.18,155.29,155.2,6.18]
[1729090279258,3.221,155.24,155.2,9.4016]
[1729090279462,6.18,155.29,155.2,6.18]
[1729090280157,3.2213,155.23,155.2,6.18]
[1729090280360,6.18,155.29,155.2,6.18]
[1729090280549,3.22,155.29,155.26,3.2204]
[1729090281263,3.2201,155.28,155.25,6.44667268]
[1729090281961,3.2201,155.28,155.25,3.2207]
[1729090282157,3.2201,155.28,155.24,6.18]
[1729090282158,1.352,155.33,155.21,6.18]
[1729090283157,6.4386,155.32,155.21,6.18]
[1729090283357,29.65,155.29,155.21,6.18]
[1729090283662,6.18,155.3,155.21,6.18]
[1729090284256,3.2208,155.25,155.21,6.18]
[1729090285266,1.352,155.33,155.21,35.83]
[1729090285461,6.18,155.32,155.21,35.83]
[1729090285657,3.2202,155.28,155.25,3.2206]
[1729090285863,6.18,155.32,155.21,6.18]
[1729090286267,6.18,155.32,155.24,3.2209]
[1729090286474,6.18,155.32,155.21,6.18]
[1729090287577,29.65,155.29,155.21,6.18]
[1729090288962,3.2211,155.24,155.21,9.4014]
[1729090289869,29.65,155.29,155.21,6.18]
[1729090290671,29.65,155.29,155.21,9.4015]
[1729090291167,29.65,155.29,155.17,1.3284]
[1729090291470,6.18,155.28,155.19,3.2218]
[1729090291771,3.2215,155.22,155.19,3.2218]
[1729090292458,3.2211,155.24,155.21,3.2214]
[1729090292658,6.18,155.28,155.18,6.18]
[1729090292862,6.18,155.28,155.22,3.2212]
[1729090293268,1.352,155.33,155.22,6.18]
[1729090293470,3.2201,155.28,155.25,3.2206]
[1729090293769,7.532,155.33,155.25,3.16980738]
[1729090293967,7.532,155.33,155.22,6.18]
[1729090294170,3.2201,155.28,155.25,3.2206]
[1729090294869,6.18,155.33,155.24,3.2355229]
[1729090295074,3.2196,155.31,155.27,3.2201]
[1729090295271,6.2,155.34,155.27,3.2201]
[1729090295676,3.2198,155.3,155.27,3.2201]
[1729090296372,6.2,155.34,155.25,1.3355]
[1729090296981,3.2205,155.27,155.25,1.3355]
[1729090297276,6.2,155.34,155.23,2.7233]
[1729090297474,29.65,155.32,155.19,1.394]
[1729090297677,29.65,155.32,155.19,10.3167]
[1729090298173,3.2202,155.28,155.25,3.2207]
[1729090298572,29.65,155.32,155.25,3.2207]
[1729090298773,29.65,155.32,155.24,3.2208]
[1729090299276,3.2204,155.27,155.24,3.2208]
[1729090299886,6.2,155.32,155.19,40.0067]
[1729090300081,3.2206,155.26,155.19,40.0067]
[1729090300779,3.2206,155.26,155.21,3.2215]
[1729090300978,3.2206,155.26,155.19,40.0067]
[1729090301181,36.129,155.31,155.2,6.2]
[1729090301488,29.69,155.28,155.19,1.394]
[1729090301685,35.89,155.28,155.19,1.394]
[1729090302082,35.89,155.28,155.19,4.6158]
[1729090302280,3.2213,155.23,155.19,1.394]
[1729090302481,6.2,155.28,155.19,1.394]
[1729090302686,3.221,155.24,155.21,3.2215]
[1729090302987,35.89,155.28,155.19,1.394]
[1729090303188,3.2217,155.21,155.17,9.4222]